fUST/lending_fUST_20250114
["ID","MTS","AMOUNT","RATE_DAILY","PERIOD"]
[348879349,1736847046618,-500.0,0.00021917,3]
[348879350,1736847046628,-500.0,0.00021917,3]
[348879351,1736847046637,-500.0,0.00021917,3]
[348879353,1736847046647,-500.0,0.00021917,3]
[348879354,1736847046657,-500.0,0.00021917,3]
[348879355,1736847046667,-500.0,0.00021917,3]
[348879356,1736847046677,-500.0,0.00021917,3]
[348879357,1736847046687,-501.62632194,0.00021917,3]
[348879359,1736847046696,-500.0,0.00021917,3]
[348879360,1736847046706,-620.8,0.00021917,3]
[348879361,1736847046717,-901.82,0.00021917,3]
[348879362,1736847046727,-184.15546401,0.00021917,3]
[348879363,1736847046736,-643.02,0.00021917,3]
[348879364,1736847046746,-1275.85,0.00021917,3]
[348879365,1736847046756,-500.0,0.00021917,3]
[348879366,1736847046767,-500.0,0.00021917,3]
[348879367,1736847046779,-1399.61,0.00021917,3]
[348879368,1736847046788,-500.0,0.00021917,3]
[348879369,1736847046798,-799.07,0.00021917,3]
[348879370,1736847046808,-595.52,0.00021917,3]
[348879371,1736847046818,-500.0,0.00021917,3]
[348879372,1736847046827,-500.0,0.00021917,3]
[348879373,1736847046837,-1061.27,0.00021917,3]
[348879374,1736847046849,-500.0,0.00021917,3]
[348879375,1736847046858,-500.0,0.00021917,3]
[348879376,1736847046869,-500.0,0.00021917,3]
[348879377,1736847046878,-500.0,0.00021917,3]
[348879378,1736847046888,-191.56426232,0.00021917,3]
[348879379,1736847046899,-528.01,0.00021917,3]
[348879380,1736847046908,-500.0,0.00021917,3]
[348879381,1736847046917,-500.0,0.00021917,3]
[348879382,1736847046927,-500.0,0.00021917,3]
[348879383,1736847046937,-501.67582649,0.00021917,3]
[348879384,1736847046946,-500.0,0.00021917,3]
[348879385,1736847046955,-573.54,0.00021917,3]
[348879386,1736847046966,-150.78022881,0.00021917,3]
[348879388,1736847080451,163.04,0.000239,31]
[348879389,1736847080497,163.04,0.000239,31]
[348879390,1736847080554,163.04,0.000239,31]
[348879391,1736847080617,163.04,0.000239,31]
[348879392,1736847080672,163.04,0.000239,31]
[348879393,1736847080742,163.04,0.000239,31]
[348879394,1736847080839,163.04,0.000239,31]
[348879397,1736847339621,169.1724,0.00013973,2]
[348879398,1736847418518,10000.0,0.00024,30]
[348879399,1736847437450,5000.0,0.00024,30]
[348879406,1736847816470,-2743.66482006,0.00019717,2]
[348879407,1736847816494,-150.0,0.00019817,2]
[348879408,1736847816518,-500.0,0.00019999,7]
[348879410,1736848034195,-485.98670297,0.00020148,2]
[348879411,1736848034219,-266.892915,0.00020248,2]
[348879412,1736848034243,-175.95932706,0.00020357,2]
[348879413,1736848037099,-944.64537144,0.00020357,2]
[348879414,1736848037121,-500.0,0.00020684,9]
[348879415,1736848037143,-276.4371515,0.00020821,2]
[348879416,1736848037165,-356.864,0.0002095,2]
[348879417,1736848037187,-500.0,0.00021369,11]
[348879418,1736848037209,-160.0,0.00021486,3]
[348879419,1736848037232,-160.0,0.00021805,4]
[348879420,1736848037254,-163.25898713,0.00021817,2]
[348879421,1736848037275,-597.60379029,0.00021817,2]
[348879422,1736848037296,-395.0,0.00021844,2]
[348879423,1736848037318,-300.0,0.00021915,2]
[348879424,1736848037343,-476.16628113,0.00021916,2]
[348879425,1736848037366,-500.0,0.00021916,2]
[348879426,1736848037392,-500.0,0.00021916,2]
[348879427,1736848037416,-500.0,0.00021916,2]
[348879428,1736848037440,-500.0,0.00021916,2]
[348879429,1736848037464,-500.0,0.00021916,2]
[348879430,1736848037492,-500.0,0.00021916,2]
[348879431,1736848037516,-500.0,0.00021916,2]
[348879432,1736848037540,-500.0,0.00021916,2]
[348879433,1736848037565,-645.29426683,0.00021916,2]
[348879434,1736848037589,-599.0283883,0.00021916,2]
[348879435,1736848037611,-154.879,0.00021916,2]
[348879436,1736848037632,-502.58650724,0.00021916,2]
[348879437,1736848037654,-291.57068723,0.00021916,2]
[348879438,1736848037675,-500.0,0.00021917,3]
[348879439,1736848037697,-500.0,0.00021917,3]
[348879440,1736848037718,-153.64160329,0.00021917,3]
[348879441,1736848037741,-500.0,0.00021917,3]
[348879442,1736848037763,-500.0,0.00021917,3]
[348879443,1736848037785,-500.0,0.00021917,3]
[348879444,1736848037806,-594.54,0.00021917,3]
[348879445,1736848037830,-500.0,0.00021917,3]
[348879446,1736848037851,-500.0,0.00021917,3]
[348879447,1736848037872,-500.0,0.00021917,3]
[348879448,1736848037893,-515.07062705,0.00021917,3]
[348879449,1736848037914,-500.0,0.00021917,3]
[348879450,1736848037936,-500.0,0.00021917,3]
[348879451,1736848037957,-500.0,0.00021917,3]
[348879452,1736848037978,-90.28674031,0.00021917,3]
[348879460,1736848224023,165.446687,0.00013973,2]
[348879511,1736848232072,-204.9672179,0.00020981,2]
[348879513,1736848232083,-170.05380415,0.00021419,2]
[348879515,1736848232092,-153.0,0.00021519,2]
[348879517,1736848232102,-675.10157753,0.00021817,2]
[348879518,1736848232112,-300.0,0.00021916,2]
[348879519,1736848232121,-151.0,0.00021917,2]
[348879520,1736848232131,-151.233664,0.00021917,2]
[348879521,1736848232140,-500.0,0.00021917,3]
[348879522,1736848232150,-500.0,0.00021917,3]
[348879524,1736848232160,-500.0,0.00021917,3]
[348879526,1736848232170,-500.0,0.00021917,3]
[348879527,1736848232179,-500.0,0.00021917,3]
[348879528,1736848232189,-500.0,0.00021917,3]
[348879529,1736848232198,-500.0,0.00021917,3]
[348879531,1736848232207,-500.0,0.00021917,3]
[348879532,1736848232217,-500.0,0.00021917,3]
[348879533,1736848232226,-249.08491344,0.00021917,3]
[348879535,1736848232236,-500.0,0.00021917,3]
[348879536,1736848232245,-500.0,0.00021917,3]
[348879538,1736848232255,-500.0,0.00021917,3]
[348879540,1736848232266,-500.0,0.00021917,3]
[348879542,1736848232277,-500.0,0.00021917,3]
[348879544,1736848232297,-500.0,0.00021917,3]
[348879546,1736848232314,-500.0,0.00021917,3]
[348879548,1736848232326,-563.72,0.00021917,3]
[348879550,1736848232336,-500.0,0.00021917,3]
[348879552,1736848232345,-649.17676174,0.00021917,3]
[348879554,1736848232355,-500.0,0.00021917,3]
[348879556,1736848232367,-500.0,0.00021917,3]
[348879558,1736848232377,-500.0,0.00021917,3]
[348879560,1736848232387,-500.0,0.00021917,3]
[348879562,1736848232397,-500.0,0.00021917,3]
[348879564,1736848232407,-500.0,0.00021917,3]
[348879566,1736848232416,-500.0,0.00021917,3]
[348879568,1736848232426,-500.0,0.00021917,3]
[348879570,1736848232438,-500.0,0.00021917,3]
[348879573,1736848232448,-500.0,0.00021917,3]
[348879574,1736848232457,-500.0,0.00021917,3]
[348879577,1736848232468,-510.48733097,0.00021917,3]
[348879579,1736848232478,-500.0,0.00021917,3]
[348879580,1736848232488,-500.0,0.00021917,3]
[348879582,1736848232498,-500.0,0.00021917,3]
[348879584,1736848232509,-500.0,0.00021917,3]
[348879586,1736848232519,-500.0,0.00021917,3]
[348879588,1736848232529,-500.0,0.00021917,3]
[348879591,1736848232538,-500.0,0.00021917,3]
[348879593,1736848232548,-300.02009894,0.00021917,3]
[348879595,1736848232557,-500.0,0.00021917,3]
[348879596,1736848232567,-500.0,0.00021917,3]
[348879598,1736848232576,-500.0,0.00021917,3]
[348879599,1736848232586,-500.0,0.00021917,3]
[348879600,1736848232595,-500.0,0.00021917,3]
[348879602,1736848232604,-500.0,0.00021917,3]
[348879604,1736848232614,-500.0,0.00021917,3]
[348879606,1736848232623,-500.0,0.00021917,3]
[348879607,1736848232632,-500.0,0.00021917,3]
[348879608,1736848232641,-646.60371327,0.00021917,3]
[348879609,1736848232651,-500.0,0.00021917,3]
[348879610,1736848232660,-500.0,0.00021917,3]
[348879612,1736848232669,-513.31668533,0.00021917,3]
[348879614,1736848232678,-500.0,0.00021917,3]
[348879616,1736848232687,-500.0,0.00021917,3]
[348879619,1736848232696,-500.0,0.00021917,3]
[348879621,1736848232705,-500.0,0.00021917,3]
[348879623,1736848232715,-500.0,0.00021917,3]
[348879625,1736848232724,-500.0,0.00021917,3]
[348879627,1736848232733,-500.0,0.00021917,3]
[348879629,1736848232742,-500.0,0.00021917,3]
[348879631,1736848232751,-500.0,0.00021917,3]
[348879633,1736848232762,-500.0,0.00021917,3]
[348879635,1736848232771,-266.9988624,0.00021917,3]
[348879637,1736848232780,-500.0,0.00021917,3]
[348879639,1736848232789,-510.25505929,0.00021917,3]
[348879641,1736848232798,-500.0,0.00021917,3]
[348879643,1736848232809,-500.0,0.00021917,3]
[348879645,1736848232818,-500.0,0.00021917,3]
[348879647,1736848232827,-500.0,0.00021917,3]
[348879649,1736848232837,-500.0,0.00021917,3]
[348879651,1736848232846,-11644.94,0.00021917,3]
[348879653,1736848232856,-500.0,0.00021917,3]
[348879655,1736848232866,-500.0,0.00021917,3]
[348879657,1736848232876,-500.0,0.00021917,3]
[348879659,1736848232886,-500.0,0.00021917,3]
[348879661,1736848232895,-500.0,0.00021917,3]
[348879663,1736848232904,-641.5,0.00021917,3]
[348879665,1736848232914,-500.0,0.00021917,3]
[348879667,1736848232923,-500.0,0.00021917,3]
[348879669,1736848232932,-525.86258878,0.00021917,3]
[348879671,1736848232941,-500.0,0.00021917,3]
[348879673,1736848232950,-500.0,0.00021917,3]
[348879675,1736848232959,-500.0,0.00021917,3]
[348879677,1736848232968,-994.39,0.00021917,3]
[348879679,1736848232978,-500.0,0.00021917,3]
[348879681,1736848232987,-500.0,0.00021917,3]
[348879683,1736848232996,-500.0,0.00021917,3]
[348879685,1736848233006,-500.0,0.00021917,3]
[348879687,1736848233016,-760.84,0.00021917,3]
[348879689,1736848233025,-500.0,0.00021917,3]
[348879691,1736848233036,-500.0,0.00021917,3]
[348879693,1736848233046,-500.0,0.00021917,3]
[348879695,1736848233056,-500.0,0.00021917,3]
[348879697,1736848233067,-500.0,0.00021917,3]
[348879699,1736848233077,-863.36,0.00021917,3]
[348879701,1736848233087,-500.0,0.00021917,3]
[348879703,1736848233096,-509.11534163,0.00021917,3]
[348879705,1736848233106,-500.0,0.00021917,3]
[348879707,1736848233115,-500.0,0.00021917,3]
[348879709,1736848233124,-500.0,0.00021917,3]
[348879711,1736848233134,-500.0,0.00021917,3]
[348879713,1736848233143,-500.0,0.00021917,3]
[348879715,1736848233153,-500.0,0.00021917,3]
[348879717,1736848233162,-846.56,0.00021917,3]
[348879719,1736848233171,-644.58,0.00021917,3]
[348879721,1736848233180,-500.0,0.00021917,3]
[348879723,1736848233190,-689.88,0.00021917,3]
[348879725,1736848233199,-500.0,0.00021917,3]
[348879727,1736848233209,-500.0,0.00021917,3]
[348879728,1736848233218,-506.49524507,0.00021917,3]
[348879730,1736848233227,-536.23,0.00021917,3]
[348879731,1736848233236,-500.0,0.00021917,3]
[348879733,1736848233246,-500.0,0.00021917,3]
[348879735,1736848233256,-442.51457052,0.00021917,3]
[348879737,1736848233267,-500.0,0.00021917,3]
[348879739,1736848233276,-500.0,0.00021917,3]
[348879741,1736848233286,-500.0,0.00021917,3]
[348879743,1736848233297,-500.0,0.00021917,3]
[348879745,1736848233307,-500.0,0.00021917,3]
[348879747,1736848233317,-1211.05,0.00021917,3]
[348879749,1736848233327,-500.0,0.00021917,3]
[348879751,1736848233336,-500.0,0.00021917,3]
[348879753,1736848233346,-957.33,0.00021917,3]
[348879755,1736848233356,-500.0,0.00021917,3]
[348879756,1736848233366,-500.0,0.00021917,3]
[348879758,1736848233376,-500.0,0.00021917,3]
[348879760,1736848233387,-942.43,0.00021917,3]
[348879762,1736848233397,-500.0,0.00021917,3]
[348879764,1736848233407,-4843.93,0.00021917,3]
[348879766,1736848233416,-1147.45,0.00021917,3]
[348879768,1736848233426,-500.0,0.00021917,3]
[348879770,1736848233440,-862.48,0.00021917,3]
[348879772,1736848233450,-500.0,0.00021917,3]
[348879774,1736848233460,-507.74585413,0.00021917,3]
[348879776,1736848233469,-500.0,0.00021917,3]
[348879778,1736848233482,-523.73,0.00021917,3]
[348879780,1736848233492,-500.0,0.00021917,3]
[348879782,1736848233502,-500.0,0.00021917,3]
[348879784,1736848233513,-504.95633545,0.00021917,3]
[348879786,1736848233524,-980.39,0.00021917,3]
[348879788,1736848233534,-528.62615322,0.00021917,3]
[348879790,1736848233543,-500.0,0.00021917,3]
[348879792,1736848233552,-290.74658979,0.00021917,3]
[348879794,1736848233562,-500.0,0.00021917,3]
[348879796,1736848233572,-500.0,0.00021917,3]
[348879798,1736848233582,-500.0,0.00021917,3]
[348879800,1736848233592,-500.0,0.00021917,3]
[348879802,1736848233602,-831.36,0.00021917,3]
[348879804,1736848233612,-500.0,0.00021917,3]
[348879806,1736848233622,-500.0,0.00021917,3]
[348879808,1736848233631,-500.0,0.00021917,3]
[348879810,1736848233641,-780.8,0.00021917,3]
[348879812,1736848233651,-500.0,0.00021917,3]
[348879813,1736848233660,-548.32,0.00021917,3]
[348879815,1736848233670,-125.43001242,0.00021917,3]
[348880179,1736848238167,-394.09469254,0.00021917,3]
[348880180,1736848238177,-500.0,0.00021917,3]
[348880181,1736848238187,-160.25287306,0.00021917,3]
[348880182,1736848238197,-500.0,0.00021917,3]
[348880183,1736848238207,-431.97170126,0.00021917,3]
[348880184,1736848238229,-68.02829874,0.00021917,3]
[348880185,1736848238239,-500.0,0.00021917,3]
[348880186,1736848238248,-500.0,0.00021917,3]
[348880187,1736848238258,-500.0,0.00021917,3]
[348880188,1736848238269,-500.0,0.00021917,3]
[348880189,1736848238279,-500.0,0.00021917,3]
[348880190,1736848238289,-902.14,0.00021917,3]
[348880191,1736848238301,-965.38,0.00021917,3]
[348880192,1736848238311,-500.0,0.00021917,3]
[348880193,1736848238321,-500.0,0.00021917,3]
[348880194,1736848238331,-500.0,0.00021917,3]
[348880195,1736848238341,-904.12,0.00021917,3]
[348880196,1736848238351,-500.0,0.00021917,3]
[348880197,1736848238360,-500.0,0.00021917,3]
[348880198,1736848238370,-615.32,0.00021917,3]
[348880199,1736848238380,-500.0,0.00021917,3]
[348880200,1736848238390,-4012.42,0.00021917,3]
[348880201,1736848238399,-500.0,0.00021917,3]
[348880202,1736848238409,-500.0,0.00021917,3]
[348880203,1736848238418,-801.03,0.00021917,3]
[348880204,1736848238429,-500.0,0.00021917,3]
[348880205,1736848238442,-500.0,0.00021917,3]
[348880206,1736848238452,-500.0,0.00021917,3]
[348880207,1736848238461,-500.0,0.00021917,3]
[348880208,1736848238471,-1000.6,0.00021917,3]
[348880209,1736848238483,-633.23,0.00021917,3]
[348880211,1736848238493,-500.0,0.00021917,3]
[348880213,1736848238502,-500.0,0.00021917,3]
[348880214,1736848238515,-1024.6,0.00021917,3]
[348880216,1736848238525,-500.0,0.00021917,3]
[348880218,1736848238534,-703.0,0.00021917,3]
[348880220,1736848238544,-500.0,0.00021917,3]
[348880221,1736848238553,-500.0,0.00021917,3]
[348880222,1736848238564,-500.0,0.00021917,3]
[348880223,1736848238574,-500.0,0.00021917,3]
[348880224,1736848238584,-500.0,0.00021917,3]
[348880225,1736848238594,-500.0,0.00021917,3]
[348880226,1736848238604,-500.0,0.00021917,3]
[348880228,1736848238613,-300.64273925,0.00021917,3]
[348880230,1736848238623,-1402.28,0.00021917,3]
[348880232,1736848238632,-500.0,0.00021917,3]
[348880234,1736848238643,-500.0,0.00021917,3]
[348880236,1736848238652,-500.0,0.00021917,3]
[348880239,1736848238662,-500.0,0.00021917,3]
[348880240,1736848238671,-500.0,0.00021917,3]
[348880242,1736848238680,-500.0,0.00021917,3]
[348880244,1736848238690,-500.0,0.00021917,3]
[348880246,1736848238699,-500.0,0.00021917,3]
[348880249,1736848238709,-592.59,0.00021917,3]
[348880251,1736848238719,-596.83,0.00021917,3]
[348880253,1736848238729,-500.0,0.00021917,3]
[348880255,1736848238738,-1000.0,0.00021917,3]
[348880257,1736848238748,-500.0,0.00021917,3]
[348880259,1736848238759,-500.0,0.00021917,3]
[348880261,1736848238770,-500.0,0.00021917,3]
[348880263,1736848238779,-1083.92,0.00021917,3]
[348880265,1736848238788,-234.02094247,0.00021917,3]
[348880267,1736848238798,-500.0,0.00021917,3]
[348880269,1736848238807,-500.0,0.00021917,3]
[348880271,1736848238817,-615.91,0.00021917,3]
[348880273,1736848238826,-500.0,0.00021917,3]
[348880275,1736848238836,-2221.8,0.00021917,3]
[348880277,1736848238846,-500.0,0.00021917,3]
[348880279,1736848238856,-482.83713903,0.00021917,3]
[348880281,1736848238866,-500.0,0.00021917,3]
[348880283,1736848238875,-722.61,0.00021917,3]
[348880285,1736848238885,-500.0,0.00021917,3]
[348880287,1736848238895,-529.06,0.00021917,3]
[348880289,1736848238904,-500.0,0.00021917,3]
[348880291,1736848238914,-517.93,0.00021917,3]
[348880293,1736848238923,-404.8443493,0.00021917,3]
[348880295,1736848238933,-500.0,0.00021917,3]
[348880297,1736848238942,-1497.25,0.00021917,3]
[348880299,1736848238952,-500.0,0.00021917,3]
[348880301,1736848238961,-500.0,0.00021917,3]
[348880303,1736848238971,-500.0,0.00021917,3]
[348880305,1736848238981,-500.0,0.00021917,3]
[348880307,1736848238991,-500.0,0.00021917,3]
[348880309,1736848239000,-500.0,0.00021917,3]
[348880311,1736848239010,-508.96,0.00021917,3]
[348880313,1736848239021,-500.0,0.00021917,3]
[348880315,1736848239032,-267.17074165,0.00021917,3]
[348880317,1736848239044,-500.0,0.00021917,3]
[348880319,1736848239054,-693.02,0.00021917,3]
[348880321,1736848239064,-500.0,0.00021917,3]
[348880324,1736848239074,-500.0,0.00021917,3]
[348880326,1736848239083,-1152.0,0.00021917,3]
[348880328,1736848239092,-500.0,0.00021917,3]
[348880330,1736848239102,-500.0,0.00021917,3]
[348880332,1736848239112,-500.0,0.00021917,3]
[348880334,1736848239121,-507.35195188,0.00021917,3]
[348880336,1736848239130,-500.0,0.00021917,3]
[348880337,1736848239140,-500.0,0.00021917,3]
[348880340,1736848239149,-500.0,0.00021917,3]
[348880343,1736848239158,-500.0,0.00021917,3]
[348880345,1736848239168,-500.0,0.00021917,3]
[348880347,1736848239178,-500.0,0.00021917,3]
[348880350,1736848239187,-478.7312354,0.00021917,3]
[348880352,1736848239197,-1174.93,0.00021917,3]
[348880354,1736848239206,-500.0,0.00021917,3]
[348880356,1736848239216,-1566.14,0.00021917,3]
[348880358,1736848239227,-961.71,0.00021917,3]
[348880360,1736848239237,-500.0,0.00021917,3]
[348880362,1736848239247,-594.09176665,0.00021917,3]
[348880364,1736848239256,-500.0,0.00021917,3]
[348880366,1736848239267,-3714.79,0.00021917,3]
[348880368,1736848239277,-500.0,0.00021917,3]
[348880370,1736848239286,-515.92631001,0.00021917,3]
[348880372,1736848239297,-500.0,0.00021917,3]
[348880374,1736848239306,-500.0,0.00021917,3]
[348880376,1736848239315,-500.0,0.00021917,3]
[348880379,1736848239325,-500.0,0.00021917,3]
[348880382,1736848239335,-500.0,0.00021917,3]
[348880385,1736848239345,-760.38,0.00021917,3]
[348880388,1736848239355,-500.0,0.00021917,3]
[348880391,1736848239365,-251.74732196,0.00021917,3]
[348880433,1736848239817,-103.20432723,0.00021917,3]
[348880447,1736848240205,-145.04835081,0.00021917,3]
[348880448,1736848240214,-510.59073794,0.00021917,3]
[348880449,1736848240223,-500.0,0.00021917,3]
[348880451,1736848240233,-855.36091125,0.00021917,2]
[348880568,1736848242994,-144.63908875,0.00021917,2]
[348880570,1736848243005,-516.57558204,0.00021917,3]
[348880571,1736848243015,-500.0,0.00021917,3]
[348880572,1736848243026,-509.42906966,0.00021917,3]
[348880573,1736848243036,-500.0,0.00021917,3]
[348880575,1736848243046,-500.0,0.00021917,3]
[348880577,1736848243056,-500.0,0.00021917,3]
[348880578,1736848243067,-500.0,0.00021917,3]
[348880580,1736848243077,-500.0,0.00021917,3]
[348880581,1736848243087,-500.0,0.00021917,3]
[348880582,1736848243098,-500.0,0.00021917,3]
[348880583,1736848243107,-508.15,0.00021917,3]
[348880584,1736848243117,-1219.9,0.00021917,3]
[348880585,1736848243127,-500.0,0.00021917,3]
[348880586,1736848243136,-569.77,0.00021917,3]
[348880588,1736848243146,-429.70120025,0.00021917,3]
[348880589,1736848243156,-500.0,0.00021917,3]
[348880590,1736848243166,-1077.1350593,0.00021917,3]
[348880612,1736848456217,2773.97213387,0.0002,2]
[348880613,1736848460194,150.0,0.00019606,2]
[348880614,1736848464679,1445.49,0.0002,2]
[348880619,1736849201613,161.9522566,0.0001962,2]
[348880620,1736849229151,-500.0,0.00020064,2]
[348880621,1736849229175,-66.90413778,0.00020064,2]
[348880622,1736849268526,150.0,0.000189,2]
[348880625,1736849339895,165.446687,0.00013973,2]
[348880631,1736849376845,483.5,0.00019964,2]
[348880676,1736849436221,-433.09586222,0.00020064,2]
[348880677,1736849436231,-363.95239521,0.00020064,2]
[348880678,1736849436241,-160.0,0.00020163,2]
[348880679,1736849436251,-574.45622316,0.00020164,2]
[348880680,1736849436261,-5806.3673781,0.00020272,2]
[348880681,1736849436271,-218.003869,0.00020452,2]
[348880682,1736849436281,-5725.5417429,0.00020624,2]
[348880683,1736849436291,-5172.0,0.00020867,2]
[348880684,1736849436301,-380.713,0.0002095,2]
[348880685,1736849436311,-416.90413778,0.00021271,7]
[348880686,1736849436321,-162.439,0.00021272,2]
[348880687,1736849436331,-169.742498,0.00021274,2]
[348880688,1736849436341,-923.7750238,0.00021344,2]
[348880689,1736849436350,-169.742498,0.00021359,2]
[348880691,1736849436577,-11515.18975504,0.00021363,2]
[348880692,1736849436587,-169.742498,0.00021444,2]
[348880693,1736849436596,-169.742498,0.0002153,2]
[348880694,1736849436606,-11515.18975504,0.00021544,2]
[348880695,1736849436616,-169.742498,0.00021615,2]
[348880696,1736849436625,-11515.18975505,0.00021664,2]
[348880697,1736849436635,-923.77502375,0.00021666,2]
[348880698,1736849436645,-169.742498,0.000217,2]
[348880699,1736849436654,-169.742498,0.00021785,2]
[348880700,1736849436663,-23493.78572105,0.00021817,3]
[348880701,1736849436673,-163.2589871,0.00021817,2]
[348880702,1736849436683,-294.6257536,0.00021833,2]
[348880703,1736849436693,-150.34,0.00021844,2]
[348880704,1736849436702,-150.0,0.00021844,2]
[348880705,1736849436713,-2152.887,0.00021844,2]
[348880706,1736849436722,-535.0,0.00021844,2]
[348880707,1736849436732,-2316.0,0.00021844,2]
[348880708,1736849436742,-169.742498,0.0002187,2]
[348880709,1736849436752,-500.0,0.00021915,2]
[348880710,1736849436762,-268.84124695,0.00021915,2]
[348880711,1736849436772,-500.0,0.00021915,2]
[348880712,1736849436782,-536.30993827,0.00021915,2]
[348880713,1736849436792,-643.20530818,0.00021915,2]
[348880714,1736849436801,-410.02790982,0.00021916,2]
[348880715,1736849436811,-499.0,0.00021916,2]
[348880716,1736849436821,-68479.09132591,0.00021917,5]
[348880717,1736849436830,-16984.37256218,0.00021917,5]
[348880718,1736849436839,-500.0,0.00021917,2]
[348880719,1736849436849,-396.29806084,0.00021917,2]
[348880720,1736849436859,-500.0,0.00021917,3]
[348880721,1736849436869,-500.0,0.00021917,3]
[348880722,1736849436878,-500.0,0.00021917,3]
[348880723,1736849436888,-500.0,0.00021917,3]
[348880724,1736849436900,-500.0,0.00021917,3]
[348880725,1736849436910,-500.0,0.00021917,3]
[348880726,1736849436920,-500.0,0.00021917,3]
[348880727,1736849436934,-500.0,0.00021917,3]
[348880728,1736849436944,-500.0,0.00021917,3]
[348880729,1736849436954,-500.0,0.00021917,3]
[348880730,1736849436964,-500.0,0.00021917,3]
[348880731,1736849436974,-500.0,0.00021917,3]
[348880732,1736849436983,-188.0,0.00021917,2]
[348880733,1736849436993,-500.0,0.00021917,3]
[348880734,1736849437003,-500.0,0.00021917,3]
[348880735,1736849437013,-500.0,0.00021917,3]
[348880736,1736849437025,-502.57349194,0.00021917,3]
[348880737,1736849437039,-501.08855486,0.00021917,3]
[348880738,1736849437049,-500.0,0.00021917,3]
[348880739,1736849437058,-500.0,0.00021917,3]
[348880740,1736849437069,-500.0,0.00021917,3]
[348880741,1736849437079,-500.0,0.00021917,3]
[348880742,1736849437088,-502.32000164,0.00021917,3]
[348880743,1736849437098,-500.0,0.00021917,3]
[348880744,1736849437110,-504.83996186,0.00021917,3]
[348880745,1736849437120,-531.59275583,0.00021917,3]
[348880746,1736849437130,-500.0,0.00021917,3]
[348880747,1736849437140,-500.0,0.00021917,3]
[348880748,1736849437150,-500.0,0.00021917,3]
[348880749,1736849437159,-519.96475968,0.00021917,3]
[348880750,1736849437168,-300.0,0.00021917,3]
[348880751,1736849437178,-500.0,0.00021917,3]
[348880752,1736849437188,-505.29137053,0.00021917,3]
[348880753,1736849437198,-500.0,0.00021917,3]
[348880754,1736849437207,-500.0,0.00021917,3]
[348880755,1736849437217,-500.0,0.00021917,3]
[348880756,1736849437226,-503.04354801,0.00021917,3]
[348880757,1736849437236,-482.65462382,0.00021917,3]
[348880758,1736849437245,-500.0,0.00021917,3]
[348880759,1736849437255,-500.0,0.00021917,3]
[348880760,1736849437266,-504.93187234,0.00021917,3]
[348880761,1736849437276,-528.31829838,0.00021917,3]
[348880762,1736849437285,-500.0,0.00021917,3]
[348880763,1736849437294,-504.87481966,0.00021917,3]
[348880764,1736849437304,-627.85748702,0.00021917,3]
[348880765,1736849437313,-563.14701524,0.00021917,3]
[348880766,1736849437323,-500.0,0.00021917,3]
[348880767,1736849437332,-500.0,0.00021917,3]